Workbook

Sheet TENANT INCOME
G1: ANNEXURE A
A2: Discount Rate | B2: 10.00%
A3: Payment in Year 1 | B3: 0
A4: Payments Per Annum | B4: 12
A5: Escallation Rate per Annum | B5: 8.00%
A6: Payments made in Arrears
M7: Nov | N7: Dec
C8: Jan | D8: Feb | E8: Mar | F8: Apr | G8: May | H8: Jun | I8: Jul | J8: Aug | K8: Sep | L8: Oct | M8: Nov | N8: Dec
A9: Year 1 | B9: =A9 -> Year 1 | C9: =N4+1 -> 1 | D9: =C9+1 -> 2 | E9: 3 | F9: 4 | G9: 5 | H9: 6 | I9: 7 | J9: 8 | K9: 9 | L9: 10 | M9: 11 | N9: 12
A10: Income | C10: R0.00 | D10: R0.00 | E10: R0.00 | F10: R0.00 | G10: R0.00 | H10: R0.00 | I10: R0.00 | J10: R0.00 | K10: R0.00 | L10: R0.00 | M10: R0.00 | N10: R0.00
A11: Discount Rate(FACTOR) | C11: =1/(1+$B$2/12)^C9 -> 0.9917355372 | D11: 0.9835393757 | E11: 0.9754109511 | F11: 0.9673497036 | G11: 0.959355078 | H11: 0.9514265236 | I11: 0.9435634945 | J11: 0.9357654491 | K11: 0.9280318503 | L11: 0.9203621656 | M11: 0.9127558667 | N11: 0.9052124298
C12: =C10*C11 -> R0.00 | D12: R0.00 | E12: R0.00 | F12: R0.00 | G12: R0.00 | H12: R0.00 | I12: R0.00 | J12: R0.00 | K12: R0.00 | L12: R0.00 | M12: R0.00 | N12: R0.00 | O12: =SUM(C12:N12) -> R0.00
C13: Jan | D13: Feb | E13: Mar | F13: Apr | G13: May | H13: Jun | I13: Jul | J13: Aug | K13: Sep | L13: Oct | M13: Nov | N13: Dec
A14: Year 2 | C14: =N9+1 -> 13 | D14: =C14+1 -> 14 | E14: 15 | F14: 16 | G14: 17 | H14: 18 | I14: 19 | J14: 20 | K14: 21 | L14: 22 | M14: 23 | N14: 24
A15: Income | B15: Year 2 | C15: =C10*(1+$B$5) -> R0.00 | D15: =D10*(1+$B$5) -> R0.00 | E15: R0.00 | F15: R0.00 | G15: R0.00 | H15: R0.00 | I15: R0.00 | J15: R0.00 | K15: R0.00 | L15: R0.00 | M15: R0.00 | N15: R0.00
A16: Discount Rate(FACTOR) | C16: =1/(1+$B$2/12)^C14 -> 0.8977313353 | D16: 0.8903120681 | E16: 0.8829541171 | F16: 0.8756569757 | G16: 0.8684201411 | H16: 0.8612431152 | I16: 0.8541254035 | J16: 0.8470665159 | K16: 0.8400659661 | L16: 0.8331232722 | M16: 0.8262379559 | N16: 0.819409543
C17: =C15*C16 -> R0.00 | D17: R0.00 | E17: R0.00 | F17: R0.00 | G17: R0.00 | H17: R0.00 | I17: R0.00 | J17: R0.00 | K17: R0.00 | L17: R0.00 | M17: R0.00 | N17: R0.00 | O17: =SUM(C17:N17) -> R0.00
C18: Jan | D18: Feb | E18: Mar | F18: Apr | G18: May | H18: Jun | I18: Jul | J18: Aug | K18: Sep | L18: Oct | M18: Nov | N18: Dec
A19: Year 3 | C19: =N14+1 -> 25 | D19: =C19+1 -> 26 | E19: 27 | F19: 28 | G19: 29 | H19: 30 | I19: 31 | J19: 32 | K19: 33 | L19: 34 | M19: 35 | N19: 36
A20: Income | B20: =A19 -> Year 3 | C20: =C15*(1+$B$5) -> R0.00 | D20: =C20 -> R0.00 | E20: =D20 -> R0.00 | F20: R0.00 | G20: R0.00 | H20: R0.00 | I20: R0.00 | J20: R0.00 | K20: R0.00 | L20: R0.00 | M20: =M15*1.08 -> R0.00 | N20: R0.00
A21: Discount Rate(FACTOR) | C21: =1/(1+$B$2/12)^C19 -> 0.8126375634 | D21: 0.8059215504 | E21: 0.7992610418 | F21: 0.7926555786 | G21: 0.786104706 | H21: 0.7796079729 | I21: 0.7731649318 | J21: 0.766775139 | K21: 0.7604381544 | L21: 0.7541535415 | M21: 0.7479208677 | N21: 0.7417397035
C22: =C20*C21 -> R0.00 | D22: R0.00 | E22: R0.00 | F22: R0.00 | G22: R0.00 | H22: R0.00 | I22: R0.00 | J22: R0.00 | K22: R0.00 | L22: R0.00 | M22: R0.00 | N22: R0.00 | O22: =SUM(C22:N22) -> R0.00
C23: Jan | D23: Feb | E23: Mar | F23: Apr | G23: May | H23: Jun | I23: Jul | J23: Aug | K23: Sep | L23: Oct | M23: Nov | N23: Dec
A24: Year 4 | C24: =N19+1 -> 37 | D24: =C24+1 -> 38 | E24: 39 | F24: 40 | G24: 41 | H24: 42 | I24: 43 | J24: 44 | K24: 45 | L24: 46 | M24: 47 | N24: 48
A25: Income | B25: YEAR 4 | C25: =C20*(1+$B$5) -> R0.00 | D25: =C25 -> R0.00 | E25: =D25 -> R0.00 | F25: R0.00 | G25: R0.00 | H25: R0.00 | I25: R0.00 | J25: R0.00 | K25: R0.00 | L25: R0.00 | M25: =L25 -> R0.00 | N25: =M25 -> R0.00
A26: Discount Rate(FACTOR) | C26: =1/(1+$B$2/12)^C24 -> 0.7356096233 | D26: 0.7295302049 | E26: 0.7235010296 | F26: 0.7175216823 | G26: 0.711591751 | H26: 0.7057108275 | I26: 0.6998785066 | J26: 0.6940943867 | K26: 0.6883580694 | L26: 0.6826691598 | M26: 0.6770272659 | N26: 0.6714319992
C27: =C25*C26 -> R0.00 | D27: R0.00 | E27: R0.00 | F27: R0.00 | G27: R0.00 | H27: R0.00 | I27: R0.00 | J27: R0.00 | K27: R0.00 | L27: R0.00 | M27: R0.00 | N27: R0.00 | O27: =SUM(C27:N27) -> R0.00
C28: Jan | D28: Feb | E28: Mar | F28: Apr | G28: May | H28: Jun | I28: Jul | J28: Aug | K28: Sep | L28: Oct | M28: Nov | N28: Dec
A29: Year 5 | C29: =N24+1 -> 49 | D29: =C29+1 -> 50 | E29: 51 | F29: 52 | G29: 53 | H29: 54 | I29: 55 | J29: 56 | K29: 57 | L29: 58 | M29: 59 | N29: 60
A30: Income | B30: =A29 -> Year 5 | C30: =C25*(1+$B$5) -> R0.00 | D30: =C30 -> R0.00 | E30: =D30 -> R0.00 | F30: R0.00 | G30: R0.00 | H30: R0.00 | I30: R0.00 | J30: R0.00 | K30: R0.00 | L30: R0.00 | M30: =L30 -> R0.00 | N30: =M30 -> R0.00
A31: Discount Rate(FACTOR) | C31: =1/(1+$B$2/12)^C29 -> 0.6658829745 | D31: 0.6603798094 | E31: 0.654922125 | F31: 0.6495095455 | G31: 0.644141698 | H31: 0.6388182129 | I31: 0.6335387235 | J31: 0.6283028663 | K31: 0.6231102806 | L31: 0.6179606089 | M31: 0.6128534964 | N31: 0.6077885915
C32: =C30*C31 -> R0.00 | D32: R0.00 | E32: R0.00 | F32: R0.00 | G32: R0.00 | H32: R0.00 | I32: R0.00 | J32: R0.00 | K32: R0.00 | L32: R0.00 | M32: R0.00 | N32: R0.00 | O32: =SUM(C32:N32) -> R0.00
C33: Jan | D33: Feb | E33: Mar | F33: Apr | G33: May | H33: Jun | I33: Jul | J33: Aug | K33: Sep | L33: Oct | M33: Nov | N33: Dec
A34: Year 6 | C34: =N29+1 -> 61 | D34: =C34+1 -> 62 | E34: 63 | F34: 64 | G34: 65 | H34: 66 | I34: 67 | J34: 68 | K34: 69 | L34: 70 | M34: 71 | N34: 72 | O34: 0
A35: Income | B35: =A34 -> Year 6 | C35: =C30*(1+$B$5) -> R0.00 | D35: =C35 -> R0.00 | E35: =D35 -> R0.00 | F35: R0.00 | G35: R0.00 | H35: R0.00 | I35: R0.00 | J35: R0.00 | K35: R0.00 | L35: R0.00 | M35: =L35 -> R0.00 | N35: =M35 -> R0.00
A36: Discount Rate(FACTOR) | C36: =1/(1+$B$2/12)^C34 -> 0.6027655453 | D36: 0.5977840118 | E36: 0.5928436481 | F36: 0.5879441138 | G36: 0.5830850715 | H36: 0.5782661867 | I36: 0.5734871273 | J36: 0.5687475642 | K36: 0.5640471711 | L36: 0.5593856243 | M36: 0.5547626026 | N36: 0.5501777877
C37: =C35*C36 -> R0.00 | D37: R0.00 | E37: R0.00 | F37: R0.00 | G37: R0.00 | H37: R0.00 | I37: R0.00 | J37: R0.00 | K37: R0.00 | L37: R0.00 | M37: R0.00 | N37: R0.00 | O37: =SUM(C37:N37) -> R0.00
C38: Jan | D38: Feb | E38: Mar | F38: Apr | G38: May | H38: Jun | I38: Jul | J38: Aug | K38: Sep | L38: Oct
A39: Year 7 | C39: =N34+1 -> 73 | D39: =C39+1 -> 74 | E39: 75 | F39: 76 | G39: 77 | H39: 78 | I39: 79 | J39: 80 | K39: 81 | L39: 82 | M39: 83 | N39: 84
A40: Income | B40: =A39 -> Year 7 | C40: =C35*(1+$B$5) -> R0.00 | D40: =C40 -> R0.00 | E40: =D40 -> R0.00 | F40: R0.00 | G40: R0.00 | H40: R0.00 | I40: R0.00 | J40: R0.00 | K40: R0.00 | L40: R0.00 | M40: =L40 -> R0.00 | N40: =M40 -> R0.00
A41: Discount Rate(FACTOR) | C41: =1/(1+$B$2/12)^C39 -> 0.5456308638 | D41: 0.5411215178 | E41: 0.5366494392 | F41: 0.5322143198 | G41: 0.5278158544 | H41: 0.5234537399 | I41: 0.5191276759 | J41: 0.5148373646 | K41: 0.5105825103 | L41: 0.5063628201 | M41: 0.5021780034 | N41: 0.498027772
C42: =C40*C41 -> R0.00 | D42: R0.00 | E42: R0.00 | F42: R0.00 | G42: R0.00 | H42: R0.00 | I42: R0.00 | J42: R0.00 | K42: R0.00 | L42: R0.00 | M42: R0.00 | N42: R0.00 | O42: =SUM(C42:N42) -> R0.00
C43: Jan | D43: Feb | E43: Mar | F43: Apr | G43: May | H43: Jun | I43: Jul | J43: Aug | K43: Sep | L43: Oct | M43: Nov | N43: Dec
A44: Year 8 | C44: =N39+1 -> 85 | D44: =C44+1 -> 86 | E44: 87 | F44: 88 | G44: 89 | H44: 90 | I44: 91 | J44: 92 | K44: 93 | L44: 94 | M44: 95 | N44: 96
A45: Income | B45: =A44 -> Year 8 | C45: =C40*(1+$B$5) -> R0.00 | D45: =C45 -> R0.00 | E45: R0.00 | F45: R0.00 | G45: R0.00 | H45: R0.00 | I45: R0.00 | J45: R0.00 | K45: R0.00 | L45: R0.00 | M45: R0.00 | N45: R0.00
A46: Discount Rate(FACTOR) | C46: =1/(1+$B$2/12)^C44 -> 0.49391184 | D46: 0.489829924 | E46: 0.4857817428 | F46: 0.4817670176 | G46: 0.477785472 | H46: 0.4738368318 | I46: 0.4699208249 | J46: 0.4660371817 | K46: 0.4621856348 | L46: 0.4583659188 | M46: 0.4545777707 | N46: 0.4508209296
C47: =C45*C46 -> R0.00 | D47: =D45*D46 -> R0.00 | E47: R0.00 | F47: R0.00 | G47: R0.00 | H47: R0.00 | I47: R0.00 | J47: R0.00 | K47: R0.00 | L47: R0.00 | M47: R0.00 | N47: R0.00 | O47: =SUM(C47:N47) -> R0.00
C48: Jan | D48: Feb | E48: Mar | F48: Apr | G48: May | H48: Jun | I48: Jul | J48: Aug | K48: Sep | L48: Oct | M48: Nov | N48: Dec
A49: Year 9 | C49: =N44+1 -> 97 | D49: =C49+1 -> 98 | E49: 99 | F49: 100 | G49: 101 | H49: 102 | I49: 103 | J49: 104 | K49: 105 | L49: 106 | M49: 107 | N49: 108
A50: Income | B50: =A49 -> Year 9 | C50: =C45*(1+$B$5) -> R0.00 | D50: =D45*1.08 -> R0.00 | E50: R0.00 | F50: R0.00 | G50: R0.00 | H50: R0.00 | I50: R0.00 | J50: R0.00 | K50: R0.00 | L50: R0.00 | M50: R0.00 | N50: R0.00
A51: Discount Rate(FACTOR) | C51: =1/(1+$B$2/12)^C49 -> 0.4470951368 | D51: 0.4434001357 | E51: 0.4397356717 | F51: 0.4361014926 | G51: 0.4324973481 | H51: 0.4289229898 | I51: 0.4253781717 | J51: 0.4218626496 | K51: 0.4183761815 | L51: 0.4149185271 | M51: 0.4114894483 | N51: 0.4080887091
C52: =C50*C51 -> R0.00 | D52: =D50*D51 -> R0.00 | E52: R0.00 | F52: R0.00 | G52: R0.00 | H52: R0.00 | I52: R0.00 | J52: R0.00 | K52: R0.00 | L52: R0.00 | M52: R0.00 | N52: R0.00 | O52: =SUM(C52:N52) -> R0.00
C53: Jan | D53: Feb | E53: Mar | F53: Apr | G53: May | H53: Jun | I53: Jul | J53: Aug | K53: Sep | L53: Oct | M53: Nov | N53: Dec
A54: Year 10 | C54: =N49+1 -> 109 | D54: =C54+1 -> 110 | E54: 111 | F54: 112 | G54: 113 | H54: 114 | I54: 115 | J54: 116 | K54: 117 | L54: 118 | M54: 119 | N54: 120
A55: Income | B55: =A54 -> Year 10 | C55: =C50*(1+$B$5) -> R0.00 | D55: =D50*1.08 -> R0.00 | E55: R0.00 | F55: R0.00 | G55: R0.00 | H55: R0.00 | I55: R0.00 | J55: R0.00 | K55: R0.00 | L55: R0.00 | M55: R0.00 | N55: R0.00
A56: Discount Rate(FACTOR) | C56: =1/(1+$B$2/12)^C54 -> 0.4047160751 | D56: 0.4013713142 | E56: 0.3980541959 | F56: 0.3947644918 | G56: 0.3915019753 | H56: 0.3882664218 | I56: 0.3850576084 | J56: 0.3818753141 | K56: 0.3787193198 | L56: 0.375589408 | M56: 0.3724853634 | N56: 0.3694069719
C57: =C55*C56 -> R0.00 | D57: =D55*D56 -> R0.00 | E57: R0.00 | F57: R0.00 | G57: R0.00 | H57: R0.00 | I57: R0.00 | J57: R0.00 | K57: R0.00 | L57: R0.00 | M57: R0.00 | N57: R0.00 | O57: =SUM(C57:N57) -> R0.00
C58: Jan | D58: Feb | E58: Mar | F58: Apr | G58: May | H58: Jun | I58: Jul | J58: Aug | K58: Sep | L58: Oct | M58: Nov | N58: Dec
A59: Year 11 | C59: =N54+1 -> 121 | D59: =C59+1 -> 122 | E59: 123 | F59: 124 | G59: 125 | H59: 126 | I59: 127 | J59: 128 | K59: 129 | L59: 130 | M59: 131 | N59: 132
A60: Income | B60: =A59 -> Year 11 | C60: =C55*(1+$B$5) -> R0.00 | D60: =D55*1.08 -> R0.00 | E60: R0.00 | F60: R0.00 | G60: R0.00 | H60: R0.00 | I60: R0.00 | J60: R0.00 | K60: R0.00 | L60: R0.00 | M60: R0.00 | N60: R0.00
A61: Discount Rate(FACTOR) | C61: =1/(1+$B$2/12)^C59 -> 0.3663540217 | D61: 0.3633263026 | E61: 0.3603236058 | F61: 0.3573457248 | G61: 0.3543924543 | H61: 0.3514635911 | I61: 0.3485589333 | J61: 0.345678281 | K61: 0.3428214357 | L61: 0.3399882007 | M61: 0.3371783808 | N61: 0.3343917826
C62: =C60*C61 -> R0.00 | D62: =D60*D61 -> R0.00 | E62: R0.00 | F62: R0.00 | G62: R0.00 | H62: R0.00 | I62: R0.00 | J62: R0.00 | K62: R0.00 | L62: R0.00 | M62: R0.00 | N62: R0.00 | O62: =SUM(C62:N62) -> R0.00
C63: Jan | D63: Feb | E63: Mar | F63: Apr | G63: May | H63: Jun | I63: Jul | J63: Aug | K63: Sep | L63: Oct | M63: Nov | N63: Dec
A64: Year 12 | C64: =N59+1 -> 133 | D64: =C64+1 -> 134 | E64: 135 | F64: 136 | G64: 137 | H64: 138 | I64: 139 | J64: 140 | K64: 141 | L64: 142 | M64: 143 | N64: 144
A65: Income | B65: =A64 -> Year 12 | C65: =C60*(1+$B$5) -> R0.00 | D65: =C65 -> R0.00 | E65: R0.00 | F65: R0.00 | G65: R0.00 | H65: R0.00 | I65: R0.00 | J65: R0.00 | K65: R0.00 | L65: R0.00 | M65: R0.00 | N65: R0.00
A66: Discount Rate(FACTOR) | C66: =1/(1+$B$2/12)^C64 -> 0.3316282142 | D66: 0.3288874851 | E66: 0.3261694067 | F66: 0.3234737918 | G66: 0.3208004547 | H66: 0.3181492113 | I66: 0.3155198789 | J66: 0.3129122766 | K66: 0.3103262248 | L66: 0.3077615452 | M66: 0.3052180614 | N66: 0.3026955981
C67: =C65*C66 -> R0.00 | D67: =D65*D66 -> R0.00 | E67: R0.00 | F67: R0.00 | G67: R0.00 | H67: R0.00 | I67: R0.00 | J67: R0.00 | K67: R0.00 | L67: R0.00 | M67: R0.00 | N67: R0.00 | O67: =SUM(C67:N67) -> R0.00
C68: Jan | D68: Feb | E68: Mar | F68: Apr | G68: May | H68: Jun | I68: Jul | J68: Aug | K68: Sep | L68: Oct | M68: Nov | N68: Dec
A69: Year 13 | C69: =N64+1 -> 145 | D69: =C69+1 -> 146 | E69: 147 | F69: 148 | G69: 149 | H69: 150 | I69: 151 | J69: 152 | K69: 153 | L69: 154 | M69: 155 | N69: 156
A70: Income | B70: =A69 -> Year 13 | C70: =C65*(1+$B$5) -> R0.00 | D70: =D65*1.08 -> R0.00 | E70: R0.00 | F70: R0.00 | G70: R0.00 | H70: R0.00 | I70: R0.00 | J70: R0.00 | K70: R0.00 | L70: R0.00 | M70: R0.00 | N70: R0.00
A71: Discount Rate(FACTOR) | C71: =1/(1+$B$2/12)^C69 -> 0.3001939815 | D71: 0.2977130396 | E71: 0.2952526012 | F71: 0.2928124971 | G71: 0.2903925591 | H71: 0.2879926206 | I71: 0.2856125163 | J71: 0.2832520822 | K71: 0.2809111559 | L71: 0.2785895761 | M71: 0.276287183 | N71: 0.2740038178
C72: =C70*C71 -> R0.00 | D72: =D70*D71 -> R0.00 | E72: R0.00 | F72: R0.00 | G72: R0.00 | H72: R0.00 | I72: R0.00 | J72: R0.00 | K72: R0.00 | L72: R0.00 | M72: R0.00 | N72: R0.00 | O72: =SUM(C72:N72) -> R0.00
C73: Jan | D73: Feb | E73: Mar | F73: Apr | G73: May | H73: Jun | I73: Jul | J73: Aug | K73: Sep | L73: Oct | M73: Nov | N73: Dec
A74: Year 14 | C74: =N69+1 -> 157 | D74: =C74+1 -> 158 | E74: 159 | F74: 160 | G74: 161 | H74: 162 | I74: 163 | J74: 164 | K74: 165 | L74: 166 | M74: 167 | N74: 168
A75: Income | B75: Year 14 | C75: =C70*(1+$B$5) -> R0.00 | D75: =C75 -> R0.00 | E75: R0.00 | F75: R0.00 | G75: R0.00 | H75: R0.00 | I75: R0.00 | J75: R0.00 | K75: R0.00 | L75: R0.00 | M75: R0.00 | N75: R0.00
A76: Discount Rate(FACTOR) | C76: =1/(1+$B$2/12)^C74 -> 0.2717393234 | D76: 0.2694935439 | E76: 0.2672663245 | F76: 0.2650575119 | G76: 0.262866954 | H76: 0.2606944998 | I76: 0.2585399998 | J76: 0.2564033056 | K76: 0.25428427 | L76: 0.2521827471 | M76: 0.2500985922 | N76: 0.2480316617
C77: =C75*C76 -> R0.00 | D77: =D75*D76 -> R0.00 | E77: R0.00 | F77: R0.00 | G77: R0.00 | H77: R0.00 | I77: R0.00 | J77: R0.00 | K77: R0.00 | L77: R0.00 | M77: R0.00 | N77: R0.00 | O77: =SUM(C77:N77) -> R0.00
C78: Jan | D78: Feb | E78: Mar | F78: Apr | G78: May | H78: Jun | I78: Jul | J78: Aug | K78: Sep | L78: Oct | M78: Nov | N78: Dec
A79: Year 15 | C79: =N74+1 -> 169 | D79: =C79+1 -> 170 | E79: 171 | F79: 172 | G79: 173 | H79: 174 | I79: 175 | J79: 176 | K79: 177 | L79: 178 | M79: 179 | N79: 180
A80: Income | B80: =A79 -> Year 15 | C80: =C75*(1+$B$5) -> R0.00 | D80: =D75*(1+$B$5) -> R0.00 | E80: R0.00 | F80: R0.00 | G80: R0.00 | H80: R0.00 | I80: R0.00 | J80: R0.00 | K80: R0.00 | L80: R0.00 | M80: R0.00 | N80: R0.00
A81: Discount Rate(FACTOR) | C81: =1/(1+$B$2/12)^C79 -> 0.2459818132 | D81: 0.2439489057 | E81: 0.241932799 | F81: 0.2399333544 | G81: 0.2379504341 | H81: 0.2359839016 | I81: 0.2340336214 | J81: 0.2320994593 | K81: 0.2301812819 | L81: 0.2282789573 | M81: 0.2263923543 | N81: 0.2245213431
C82: =C80*C81 -> R0.00 | D82: =D80*D81 -> R0.00 | E82: R0.00 | F82: R0.00 | G82: R0.00 | H82: R0.00 | I82: R0.00 | J82: R0.00 | K82: R0.00 | L82: R0.00 | M82: R0.00 | N82: R0.00 | O82: =SUM(C82:N82) -> R0.00
C83: Jan | D83: Feb | E83: Mar | F83: Apr | G83: May | H83: Jun | I83: Jul | J83: Aug | K83: Sep | L83: Oct | M83: Nov | N83: Dec
A84: Year 16 | C84: =N79+1 -> 181 | D84: =C84+1 -> 182 | E84: 183 | F84: 184 | G84: 185 | H84: 186 | I84: 187 | J84: 188 | K84: 189 | L84: 190 | M84: 191 | N84: 192
A85: Income | B85: =A84 -> Year 16 | C85: =C80*(1+$B$5) -> R0.00 | D85: =D80*(1+$B$5) -> R0.00 | E85: R0.00 | F85: R0.00 | G85: R0.00 | H85: R0.00 | I85: R0.00 | J85: R0.00 | K85: R0.00 | L85: R0.00 | M85: R0.00 | N85: R0.00
A86: Discount Rate(FACTOR) | C86: =1/(1+$B$2/12)^C84 -> 0.2226657949 | D86: 0.2208255817 | E86: 0.2190005769 | F86: 0.2171906547 | G86: 0.2153956907 | H86: 0.213615561 | I86: 0.2118501431 | J86: 0.2100993155 | K86: 0.2083629575 | L86: 0.2066409496 | M86: 0.2049331732 | N86: 0.2032395106
C87: =C85*C86 -> R0.00 | D87: =D85*D86 -> R0.00 | E87: R0.00 | F87: R0.00 | G87: R0.00 | H87: R0.00 | I87: R0.00 | J87: R0.00 | K87: R0.00 | L87: R0.00 | M87: R0.00 | N87: R0.00 | O87: =SUM(C87:N87) -> R0.00
C88: Jan | D88: Feb | E88: Mar | F88: Apr | G88: May | H88: Jun | I88: Jul | J88: Aug | K88: Sep | L88: Oct | M88: Nov | N88: Dec
A89: Year 17` | C89: =N84+1 -> 193 | D89: =C89+1 -> 194 | E89: 195 | F89: 196 | G89: 197 | H89: 198 | I89: 199 | J89: 200 | K89: 201 | L89: 202 | M89: 203 | N89: 204
A90: Income | B90: =A89 -> Year 17` | C90: =C85*(1+$B$5) -> R0.00 | D90: =D85*(1+$B$5) -> R0.00 | E90: R0.00 | F90: R0.00 | G90: R0.00 | H90: R0.00 | I90: R0.00 | J90: R0.00 | K90: R0.00 | L90: R0.00 | M90: R0.00 | N90: R0.00
A91: Discount Rate(FACTOR) | C91: =1/(1+$B$2/12)^C89 -> 0.2015598452 | D91: 0.1998940613 | E91: 0.1982420443 | F91: 0.1966036803 | G91: 0.1949788565 | H91: 0.193367461 | I91: 0.1917693828 | J91: 0.1901845119 | K91: 0.188612739 | L91: 0.1870539561 | M91: 0.1855080556 | N91: 0.1839749312
C92: =C90*C91 -> R0.00 | D92: =D90*D91 -> R0.00 | E92: R0.00 | F92: R0.00 | G92: R0.00 | H92: R0.00 | I92: R0.00 | J92: R0.00 | K92: R0.00 | L92: R0.00 | M92: R0.00 | N92: R0.00 | O92: =SUM(C92:N92) -> R0.00
C93: Jan | D93: Feb | E93: Mar | F93: Apr | G93: May | H93: Jun | I93: Jul | J93: Aug | K93: Sep | L93: Oct | M93: Nov | N93: Dec
A94: Year 18 | C94: =N89+1 -> 205 | D94: =C94+1 -> 206 | E94: 207 | F94: 208 | G94: 209 | H94: 210 | I94: 211 | J94: 212 | K94: 213 | L94: 214 | M94: 215 | N94: 216
A95: Income | B95: =A94 -> Year 18 | C95: =C90*(1+$B$5) -> R0.00 | D95: =D90*(1+$B$5) -> R0.00 | E95: R0.00 | F95: R0.00 | G95: R0.00 | H95: R0.00 | I95: R0.00 | J95: R0.00 | K95: R0.00 | L95: R0.00 | M95: R0.00 | N95: R0.00
A96: Discount Rate(FACTOR) | C96: =1/(1+$B$2/12)^C94 -> 0.1824544772 | D96: 0.180946589 | E96: 0.1794511626 | F96: 0.1779680952 | G96: 0.1764972845 | H96: 0.1750386292 | I96: 0.173592029 | J96: 0.1721573841 | K96: 0.1707345958 | L96: 0.1693235661 | M96: 0.1679241978 | N96: 0.1665363945
C97: =C95*C96 -> R0.00 | D97: =D95*D96 -> R0.00 | E97: R0.00 | F97: R0.00 | G97: R0.00 | H97: R0.00 | I97: R0.00 | J97: R0.00 | K97: R0.00 | L97: R0.00 | M97: R0.00 | N97: R0.00 | O97: =SUM(C97:N97) -> R0.00
C98: Jan | D98: Feb | E98: Mar | F98: Apr | G98: May | H98: Jun | I98: Jul | J98: Aug | K98: Sep | L98: Oct | M98: Nov | N98: Dec
A99: Year 19 | C99: =N94+1 -> 217 | D99: =C99+1 -> 218 | E99: 219 | F99: 220 | G99: 221 | H99: 222 | I99: 223 | J99: 224 | K99: 225 | L99: 226 | M99: 227 | N99: 228
A100: Income | B100: =A99 -> Year 19 | C100: =C95*(1+$B$5) -> R0.00 | D100: =D95*(1+$B$5) -> R0.00 | E100: R0.00 | F100: R0.00 | G100: R0.00 | H100: R0.00 | I100: R0.00 | J100: R0.00 | K100: R0.00 | L100: R0.00 | M100: R0.00 | N100: R0.00
A101: Discount Rate(FACTOR) | C101: =1/(1+$B$2/12)^C99 -> 0.1651600606 | D101: 0.1637951015 | E101: 0.1624414229 | F101: 0.1610989318 | G101: 0.1597675357 | H101: 0.1584471429 | I101: 0.1571376623 | J101: 0.155839004 | K101: 0.1545510783 | L101: 0.1532737967 | M101: 0.1520070711 | N101: 0.1507508143
C102: =C100*C101 -> R0.00 | D102: =D100*D101 -> R0.00 | E102: R0.00 | F102: R0.00 | G102: R0.00 | H102: R0.00 | I102: R0.00 | J102: R0.00 | K102: R0.00 | L102: R0.00 | M102: R0.00 | N102: R0.00 | O102: =SUM(C102:N102) -> R0.00
C103: Jan | D103: Feb | E103: Mar | F103: Apr | G103: May | H103: Jun | I103: Jul | J103: Aug | K103: Sep | L103: Oct | M103: Nov | N103: Dec
A104: Year 20 | C104: =N99+1 -> 229 | D104: =C104+1 -> 230 | E104: 231 | F104: 232 | G104: 233 | H104: 234 | I104: 235 | J104: 236 | K104: 237 | L104: 238 | M104: 239 | N104: 240
A105: Income | B105: =A104 -> Year 20 | C105: =C100*(1+$B$5) -> R0.00 | D105: R0.00 | E105: R0.00 | F105: R0.00 | G105: R0.00 | H105: R0.00 | I105: =I100*(1+$B$5) -> R0.00 | J105: R0.00 | K105: R0.00 | L105: R0.00 | M105: R0.00 | N105: R0.00
A106: Discount Rate(FACTOR) | C106: =1/(1+$B$2/12)^C104 -> 0.1495049398 | D106: 0.1482693618 | E106: 0.1470439952 | F106: 0.1458287555 | G106: 0.1446235592 | H106: 0.1434283232 | I106: 0.1422429651 | J106: 0.1410674034 | K106: 0.1399015571 | L106: 0.1387453459 | M106: 0.1375986902 | N106: 0.1364615109
C107: =C105*C106 -> R0.00 | D107: =D105*D106 -> R0.00 | E107: R0.00 | F107: R0.00 | G107: R0.00 | H107: R0.00 | I107: R0.00 | J107: R0.00 | K107: R0.00 | L107: R0.00 | M107: R0.00 | N107: R0.00 | O107: =SUM(C107:N107) -> R0.00
C108: Jan | D108: Feb | E108: Mar | F108: Apr | G108: May | H108: Jun | I108: Jul | J108: Aug | K108: Sep | L108: Oct | M108: Nov | N108: Dec | O108: =SUM(O9:O107) -> 0
A109: Year 21 | C109: =N104+1 -> 241 | D109: =C109+1 -> 242 | E109: 243 | F109: 244 | G109: 245 | H109: 246 | I109: 247 | J109: 248 | K109: 249 | L109: 250 | M109: 251 | N109: 252
A110: Income | B110: =A109 -> Year 21 | C110: =C105*(1+$B$5) -> R0.00 | D110: =D105*(1+$B$5) -> R0.00 | E110: R0.00 | F110: R0.00 | G110: R0.00 | H110: R0.00 | I110: R0.00 | J110: R0.00 | K110: R0.00 | L110: R0.00 | M110: R0.00 | N110: R0.00
A111: Discount Rate(FACTOR) | C111: =1/(1+$B$2/12)^C109 -> 0.1353337298 | D111: 0.1342152692 | E111: 0.1331060521 | F111: 0.1320060021 | G111: 0.1309150434 | H111: 0.1298331009 | I111: 0.1287601001 | J111: 0.127695967 | K111: 0.1266406285 | L111: 0.1255940117 | M111: 0.1245560447 | N111: 0.1235266559
C112: =C110*C111 -> R0.00 | D112: =D110*D111 -> R0.00 | E112: R0.00 | F112: R0.00 | G112: R0.00 | H112: R0.00 | I112: R0.00 | J112: R0.00 | K112: R0.00 | L112: R0.00 | M112: R0.00 | N112: R0.00 | O112: =SUM(C112:N112) -> R0.00
C113: Jan | D113: Feb | E113: Mar | F113: Apr | G113: May | H113: Jun | I113: Jul | J113: Aug | K113: Sep | L113: Oct | M113: Nov | N113: Dec
A114: Year 22 | C114: =N109+1 -> 253 | D114: =C114+1 -> 254 | E114: 255 | F114: 256 | G114: 257 | H114: 258 | I114: 259 | J114: 260 | K114: 261 | L114: 262 | M114: 263 | N114: 264
A115: Income | B115: =A114 -> Year 22 | C115: =C110*(1+$B$5) -> R0.00 | D115: =D110*(1+$B$5) -> R0.00 | E115: R0.00 | F115: R0.00 | G115: R0.00 | H115: R0.00 | I115: R0.00 | J115: R0.00 | K115: R0.00 | L115: R0.00 | M115: R0.00 | N115: R0.00
A116: Discount Rate(FACTOR) | C116: =1/(1+$B$2/12)^C114 -> 0.1225057744 | D116: 0.12149333 | E116: 0.1204892529 | F116: 0.1194934739 | G116: 0.1185059246 | H116: 0.1175265368 | I116: 0.1165552431 | J116: 0.1155919766 | K116: 0.114636671 | L116: 0.1136892605 | M116: 0.1127496798 | N116: 0.1118178643
C117: =C115*C116 -> R0.00 | D117: =D115*D116 -> R0.00 | E117: R0.00 | F117: R0.00 | G117: R0.00 | H117: R0.00 | I117: R0.00 | J117: R0.00 | K117: R0.00 | L117: R0.00 | M117: R0.00 | N117: R0.00 | O117: =SUM(C117:N117) -> R0.00
C118: Jan | D118: Feb | E118: Mar | F118: Apr | G118: May | H118: Jun | I118: Jul | J118: Aug | K118: Sep | L118: Oct | M118: Nov | N118: Dec
A119: Year 23 | C119: =N114+1 -> 265 | D119: =C119+1 -> 266 | E119: 267 | F119: 268 | G119: 269 | H119: 270 | I119: 271 | J119: 272 | K119: 273 | L119: 274 | M119: 275 | N119: 276
A120: Income | B120: =A119 -> Year 23 | C120: =C115*(1+$B$5) -> R0.00 | D120: =D115*(1+$B$5) -> R0.00 | E120: R0.00 | F120: R0.00 | G120: R0.00 | H120: R0.00 | I120: R0.00 | J120: R0.00 | K120: R0.00 | L120: R0.00 | M120: R0.00 | N120: R0.00
A121: Discount Rate(FACTOR) | C121: =1/(1+$B$2/12)^C119 -> 0.1108937497 | D121: 0.1099772724 | E121: 0.1090683694 | F121: 0.1081669779 | G121: 0.1072730359 | H121: 0.1063864819 | I121: 0.1055072548 | J121: 0.104635294 | K121: 0.1037705395 | L121: 0.1029129317 | M121: 0.1020624116 | N121: 0.1012189206
C122: =C120*C121 -> R0.00 | D122: =D120*D121 -> R0.00 | E122: R0.00 | F122: R0.00 | G122: R0.00 | H122: R0.00 | I122: R0.00 | J122: R0.00 | K122: R0.00 | L122: R0.00 | M122: R0.00 | N122: R0.00 | O122: =SUM(C122:N122) -> R0.00
C123: Jan | D123: Feb | E123: Mar | F123: Apr | G123: May | H123: Jun | I123: Jul | J123: Aug | K123: Sep | L123: Oct | M123: Nov | N123: Dec
A124: Year 24 | C124: =N119+1 -> 277 | D124: =C124+1 -> 278 | E124: 279 | F124: 280 | G124: 281 | H124: 282 | I124: 283 | J124: 284 | K124: 285 | L124: 286 | M124: 287 | N124: 288
A125: Income | B125: =A124 -> Year 24 | C125: =C120*(1+$B$5) -> R0.00 | D125: =D120*(1+$B$5) -> R0.00 | E125: R0.00 | F125: R0.00 | G125: R0.00 | H125: R0.00 | I125: R0.00 | J125: R0.00 | K125: R0.00 | L125: R0.00 | M125: R0.00 | N125: R0.00
A126: Discount Rate(FACTOR) | C126: =1/(1+$B$2/12)^C124 -> 0.1003824006 | D126: 0.09955279401 | E126: 0.09873004364 | F126: 0.09791409287 | G126: 0.09710488549 | H126: 0.09630236578 | I126: 0.09550647846 | J126: 0.09471716872 | K126: 0.0939343822 | L126: 0.09315806499 | M126: 0.09238816363 | N126: 0.09162462508
C127: =C125*C126 -> R0.00 | D127: =D125*D126 -> R0.00 | E127: R0.00 | F127: R0.00 | G127: R0.00 | H127: R0.00 | I127: R0.00 | J127: R0.00 | K127: R0.00 | L127: R0.00 | M127: R0.00 | N127: R0.00 | O127: =SUM(C127:N127) -> R0.00
C128: Jan | D128: Feb | E128: Mar | F128: Apr | G128: May | H128: Jun | I128: Jul | J128: Aug | K128: Sep | L128: Oct | M128: Nov | N128: Dec
A129: Year 25 | C129: =N124+1 -> 289 | D129: =C129+1 -> 290 | E129: 291 | F129: 292 | G129: 293 | H129: 294 | I129: 295 | J129: 296 | K129: 297 | L129: 298 | M129: 299 | N129: 300
A130: Income | B130: =A129 -> Year 25 | C130: =C125*(1+$B$5) -> R0.00 | D130: =D125*(1+$B$5) -> R0.00 | E130: R0.00 | F130: R0.00 | G130: R0.00 | H130: R0.00 | I130: R0.00 | J130: R0.00 | K130: R0.00 | L130: R0.00 | M130: R0.00 | N130: R0.00
A131: Discount Rate(FACTOR) | C131: =1/(1+$B$2/12)^C129 -> 0.09086739678 | D131: 0.09011642656 | E131: 0.0893716627 | F131: 0.08863305392 | G131: 0.08790054934 | H131: 0.08717409852 | I131: 0.08645365142 | J131: 0.08573915844 | K131: 0.08503057035 | L131: 0.08432783836 | M131: 0.08363091408 | N131: 0.0829397495
C132: =C130*C131 -> R0.00 | D132: =D130*D131 -> R0.00 | E132: R0.00 | F132: R0.00 | G132: R0.00 | H132: R0.00 | I132: R0.00 | J132: R0.00 | K132: R0.00 | L132: R0.00 | M132: R0.00 | N132: R0.00 | O132: =SUM(C132:N132) -> R0.00
C133: Jan | D133: Feb | E133: Mar | F133: Apr | G133: May | H133: Jun | I133: Jul | J133: Aug | K133: Sep | L133: Oct | M133: Nov | N133: Dec
A134: Year 26 | C134: =N129+1 -> 301 | D134: =C134+1 -> 302 | E134: 303 | F134: 304 | G134: 305 | H134: 306 | I134: 307 | J134: 308 | K134: 309 | L134: 310 | M134: 311 | N134: 312
A135: Income | B135: =A134 -> Year 26 | C135: =C130*(1+$B$5) -> R0.00 | D135: =D130*(1+$B$5) -> R0.00 | E135: R0.00 | F135: R0.00 | G135: R0.00 | H135: R0.00 | I135: R0.00 | J135: R0.00 | K135: R0.00 | L135: R0.00 | M135: R0.00 | N135: R0.00
A136: Discount Rate(FACTOR) | C136: =1/(1+$B$2/12)^C134 -> 0.08225429703 | D136: 0.08157450945 | E136: 0.08090033995 | F136: 0.0802317421 | G136: 0.07956866985 | H136: 0.07891107754 | I136: 0.07825891987 | J136: 0.07761215194 | K136: 0.07697072919 | L136: 0.07633460746 | M136: 0.07570374294 | N136: 0.07507809217
C137: =C135*C136 -> R0.00 | D137: =D135*D136 -> R0.00 | E137: R0.00 | F137: R0.00 | G137: R0.00 | H137: R0.00 | I137: R0.00 | J137: R0.00 | K137: R0.00 | L137: R0.00 | M137: R0.00 | N137: R0.00 | O137: =SUM(C137:N137) -> R0.00
C138: Jan | D138: Feb | E138: Mar | F138: Apr | G138: May | H138: Jun | I138: Jul | J138: Aug | K138: Sep | L138: Oct
A139: Year 27 | C139: =N134+1 -> 313 | D139: =C139+1 -> 314 | E139: 315 | F139: 316 | G139: 317 | H139: 318 | I139: 319 | J139: 320 | K139: 321 | L139: 322 | M139: 322 | N139: 323
A140: Income | B140: =A139 -> Year 27 | C140: =C135*(1+$B$5) -> R0.00 | D140: =D135*(1+$B$5) -> R0.00 | E140: R0.00 | F140: R0.00 | G140: R0.00 | H140: R0.00 | I140: R0.00 | J140: R0.00 | K140: R0.00 | L140: R0.00 | M140: R0.00 | N140: R0.00
A141: Discount Rate(FACTOR) | C141: =1/(1+$B$2/12)^C139 -> 0.07445761207 | D141: 0.07384225991 | E141: 0.0732319933 | F141: 0.07262677021 | G141: 0.07202654897 | H141: 0.07143128823 | I141: 0.07084094701 | J141: 0.07025548464 | K141: 0.0696748608 | L141: 0.0690990355 | M141: 0.0690990355 | N141: 0.06852796909
C142: =C140*C141 -> R0.00 | D142: =D140*D141 -> R0.00 | E142: R0.00 | F142: R0.00 | G142: R0.00 | H142: R0.00 | I142: R0.00 | J142: R0.00 | K142: R0.00 | L142: R0.00 | M142: R0.00 | N142: R0.00 | O142: =SUM(C142:N142) -> R0.00
C143: Jan | D143: Feb | E143: Mar | F143: Apr | G143: May | H143: Jun | I143: Jul | J143: Aug | K143: Sep | L143: Oct
A144: Year 28 | C144: =N139+1 -> 324 | D144: =C144+1 -> 325 | E144: 326 | F144: 327 | G144: 328 | H144: 329 | I144: 330 | J144: 331 | K144: 332 | L144: 333 | M144: 334 | N144: 335
A145: Income | B145: =A144 -> Year 28 | C145: =C140*(1+$B$5) -> R0.00 | D145: =D140*(1+$B$5) -> R0.00 | E145: R0.00 | F145: R0.00 | G145: R0.00 | H145: R0.00 | I145: R0.00 | J145: R0.00 | K145: R0.00 | L145: R0.00 | M145: R0.00 | N145: R0.00
A146: Discount Rate(FACTOR) | C146: =1/(1+$B$2/12)^C144 -> 0.06796162224 | D146: 0.06739995594 | E146: 0.06684293151 | F146: 0.06629051059 | G146: 0.06574265513 | H146: 0.0651993274 | I146: 0.06466048998 | J146: 0.06412610577 | K146: 0.06359613795 | L146: 0.06307055004 | M146: 0.06254930582 | N146: 0.06203236941
C147: =C145*C146 -> R0.00 | D147: =D145*D146 -> R0.00 | E147: R0.00 | F147: R0.00 | G147: R0.00 | H147: R0.00 | I147: R0.00 | J147: R0.00 | K147: R0.00 | L147: R0.00 | M147: R0.00 | N147: R0.00 | O147: =SUM(C147:N147) -> R0.00
C148: Jan | D148: Feb | E148: Mar | F148: Apr | G148: May | H148: Jun | I148: Jul | J148: Aug | K148: Sep | L148: Oct
A149: Year 29 | C149: =N144+1 -> 336 | D149: =C149+1 -> 337 | E149: 338 | F149: 339 | G149: 340 | H149: 341 | I149: 342 | J149: 343 | K149: 344 | L149: 345 | M149: 346 | N149: 347
A150: Income | B150: =A149 -> Year 29 | C150: =C145*(1+$B$5) -> R0.00 | D150: =D145*(1+$B$5) -> R0.00 | E150: R0.00 | F150: R0.00 | G150: R0.00 | H150: R0.00 | I150: R0.00 | J150: R0.00 | K150: R0.00 | L150: R0.00 | M150: R0.00 | N150: R0.00
A151: Discount Rate(FACTOR) | C151: =1/(1+$B$2/12)^C149 -> 0.0615197052 | D151: 0.06101127788 | E151: 0.06050705245 | F151: 0.06000699416 | G151: 0.05951106859 | H151: 0.05901924158 | I151: 0.05853147925 | J151: 0.05804774802 | K151: 0.05756801456 | L151: 0.05709224585 | M151: 0.0566204091 | N151: 0.05615247184
C152: =C150*C151 -> R0.00 | D152: =D150*D151 -> R0.00 | E152: R0.00 | F152: R0.00 | G152: R0.00 | H152: R0.00 | I152: R0.00 | J152: R0.00 | K152: R0.00 | L152: R0.00 | M152: R0.00 | N152: R0.00 | O152: =SUM(C152:N152) -> R0.00
C153: Jan | D153: Feb | E153: Mar | F153: Apr | G153: May | H153: Jun | I153: Jul | J153: Aug | K153: Sep | L153: Oct
A154: Year 30 | C154: 348 | D154: =C154+1 -> 349 | E154: 350 | F154: 351 | G154: 352 | H154: 353 | I154: 354 | J154: 355 | K154: 356 | L154: 357 | M154: 358 | N154: 359
A155: Income | B155: =A154 -> Year 30 | C155: =C150*(1+$B$5) -> R0.00 | D155: =D150*(1+$B$5) -> R0.00 | E155: R0.00 | F155: R0.00 | G155: R0.00 | H155: R0.00 | I155: R0.00 | J155: R0.00 | K155: R0.00 | L155: R0.00 | M155: R0.00 | N155: R0.00
A156: Discount Rate(FACTOR) | C156: =1/(1+$B$2/12)^C154 -> 0.05568840182 | D156: 0.0552281671 | E156: 0.05477173597 | F156: 0.05431907699 | G156: 0.053870159 | H156: 0.05342495107 | I156: 0.05298342255 | J156: 0.05254554303 | K156: 0.05211128234 | L156: 0.05168061059 | M156: 0.0512534981 | N156: 0.05082991547
C157: =C155*C156 -> R0.00 | D157: =D155*D156 -> R0.00 | E157: R0.00 | F157: R0.00 | G157: R0.00 | H157: R0.00 | I157: R0.00 | J157: R0.00 | K157: R0.00 | L157: R0.00 | M157: R0.00 | N157: R0.00 | O157: =SUM(C157:N157) -> R0.00
C158: Jan | D158: Feb | E158: Mar | F158: Apr | G158: May | H158: Jun | I158: Jul | J158: Aug | K158: Sep | L158: Oct
A159: Year 31 | C159: =N154+1 -> 360 | D159: =C159+1 -> 361 | E159: 362 | F159: 363 | G159: 364 | H159: 365 | I159: 366 | J159: 367 | K159: 368 | L159: 369 | M159: 370 | N159: 371
A160: Income | B160: =A159 -> Year 31 | C160: =C155*(1+$B$5) -> R0.00 | D160: =D155*(1+$B$5) -> R0.00 | E160: R0.00 | F160: R0.00 | G160: R0.00 | H160: R0.00 | I160: R0.00 | J160: R0.00 | K160: R0.00 | L160: R0.00 | M160: R0.00 | N160: R0.00
A161: Discount Rate(FACTOR) | C161: =1/(1+$B$2/12)^C159 -> 0.05040983353 | D161: 0.04999322333 | E161: 0.0495800562 | F161: 0.04917030367 | G161: 0.04876393752 | H161: 0.04836092977 | I161: 0.04796125267 | J161: 0.04756487868 | K161: 0.04717178051 | L161: 0.04678193108 | M161: 0.04639530355 | N161: 0.04601187129
C162: =C160*C161 -> R0.00 | D162: =D160*D161 -> R0.00 | E162: R0.00 | F162: R0.00 | G162: R0.00 | H162: R0.00 | I162: R0.00 | J162: R0.00 | K162: R0.00 | L162: R0.00 | M162: R0.00 | N162: R0.00 | O162: =SUM(C162:N162) -> R0.00
C163: Jan | D163: Feb | E163: Mar | F163: Apr | G163: May | H163: Jun | I163: Jul | J163: Aug | K163: Sep | L163: Oct
A164: Year 32 | C164: =N159+1 -> 372 | D164: =C164+1 -> 373 | E164: 374 | F164: 375 | G164: 376 | H164: 377 | I164: 378 | J164: 379 | K164: 380 | L164: 381 | M164: 382 | N164: 383
A165: Income | B165: =A164 -> Year 32 | C165: =C160*(1+$B$5) -> R0.00 | D165: =D160*(1+$B$5) -> R0.00 | E165: R0.00 | F165: R0.00 | G165: R0.00 | H165: R0.00 | I165: R0.00 | J165: R0.00 | K165: R0.00 | L165: R0.00 | M165: R0.00 | N165: R0.00
A166: Discount Rate(FACTOR) | C166: =1/(1+$B$2/12)^C164 -> 0.04563160789 | D166: 0.04525448717 | E166: 0.04488048314 | F166: 0.04450957006 | G166: 0.04414172237 | H166: 0.04377691475 | I166: 0.04341512206 | J166: 0.0430563194 | K166: 0.04270048205 | L166: 0.0423475855 | M166: 0.04199760546 | N166: 0.04165051781
C167: =C165*C166 -> R0.00 | D167: =D165*D166 -> R0.00 | E167: R0.00 | F167: R0.00 | G167: R0.00 | H167: R0.00 | I167: R0.00 | J167: R0.00 | K167: R0.00 | L167: R0.00 | M167: R0.00 | N167: R0.00 | O167: =SUM(C167:N167) -> R0.00
C168: Jan | D168: Feb | E168: Mar | F168: Apr | G168: May | H168: Jun | I168: Jul | J168: Aug | K168: Sep | L168: Oct
A169: Year 33 | C169: =N164+1 -> 384 | D169: =C169+1 -> 385 | E169: 386 | F169: 387 | G169: 388 | H169: 389 | I169: 390 | J169: 391 | K169: 392 | L169: 393 | M169: 394 | N169: 395
A170: Income | B170: =A169 -> Year 33 | C170: =C165*(1+$B$5) -> R0.00 | D170: =D165*(1+$B$5) -> R0.00 | E170: R0.00 | F170: R0.00 | G170: R0.00 | H170: R0.00 | I170: R0.00 | J170: R0.00 | K170: R0.00 | L170: R0.00 | M170: R0.00 | N170: R0.00
A171: Discount Rate(FACTOR) | C171: =1/(1+$B$2/12)^C169 -> 0.04130629865 | D171: 0.04096492429 | E171: 0.04062637119 | F171: 0.04029061606 | G171: 0.03995763576 | H171: 0.03962740737 | I171: 0.03929990813 | J171: 0.0389751155 | K171: 0.03865300711 | L171: 0.03833356077 | M171: 0.03801675448 | N171: 0.03770256643
C172: =C170*C171 -> R0.00 | D172: =D170*D171 -> R0.00 | E172: R0.00 | F172: R0.00 | G172: R0.00 | H172: R0.00 | I172: R0.00 | J172: R0.00 | K172: R0.00 | L172: R0.00 | M172: R0.00 | N172: R0.00 | O172: =SUM(C172:N172) -> R0.00
C173: Jan | D173: Feb | E173: Mar | F173: Apr | G173: May | H173: Jun | I173: Jul | J173: Aug | K173: Sep | L173: Oct
A174: Year 34 | C174: =N169+1 -> 396 | D174: =C174+1 -> 397 | E174: 398 | F174: 399 | G174: 400 | H174: 401 | I174: 402 | J174: 403 | K174: 404 | L174: 405 | M174: 406 | N174: 407
A175: Income | B175: =A174 -> Year 34 | C175: =C170*(1+$B$5) -> R0.00 | D175: =D170*(1+$B$5) -> R0.00 | E175: R0.00 | F175: R0.00 | G175: R0.00 | H175: R0.00 | I175: R0.00 | J175: R0.00 | K175: R0.00 | L175: R0.00 | M175: R0.00 | N175: R0.00
A176: Discount Rate(FACTOR) | C176: =1/(1+$B$2/12)^C174 -> 0.03739097497 | D176: 0.03708195865 | E176: 0.03677549618 | F176: 0.03647156646 | G176: 0.03617014856 | H176: 0.03587122171 | I176: 0.03557476533 | J176: 0.03528075901 | K176: 0.03498918248 | L176: 0.03470001569 | M176: 0.0344132387 | N176: 0.03412883177
C177: =C175*C176 -> R0.00 | D177: =D175*D176 -> R0.00 | E177: R0.00 | F177: R0.00 | G177: R0.00 | H177: R0.00 | I177: R0.00 | J177: R0.00 | K177: R0.00 | L177: R0.00 | M177: R0.00 | N177: R0.00 | O177: =SUM(C177:N177) -> R0.00
C178: Jan | D178: Feb | E178: Mar | F178: Apr | G178: May | H178: Jun | I178: Jul | J178: Aug | K178: Sep | L178: Oct
A179: Year 35 | C179: =N174+1 -> 408 | D179: =C179+1 -> 409 | E179: 410 | F179: 411 | G179: 412 | H179: 413 | I179: 414 | J179: 415 | K179: 416 | L179: 417 | M179: 418 | N179: 419
A180: Income | B180: =A179 -> Year 35 | C180: =C175*(1+$B$5) -> R0.00 | D180: =D175*(1+$B$5) -> R0.00 | E180: R0.00 | F180: R0.00 | G180: R0.00 | H180: R0.00 | I180: R0.00 | J180: R0.00 | K180: R0.00 | L180: R0.00 | M180: R0.00 | N180: R0.00
A181: Discount Rate(FACTOR) | C181: =1/(1+$B$2/12)^C179 -> 0.03384677531 | D181: 0.03356704989 | E181: 0.03328963625 | F181: 0.03301451529 | G181: 0.03274166806 | H181: 0.03247107576 | I181: 0.03220271976 | J181: 0.03193658158 | K181: 0.03167264289 | L181: 0.03141088551 | M181: 0.03115129142 | N181: 0.03089384273
C182: =C180*C181 -> R0.00 | D182: =D180*D181 -> R0.00 | E182: R0.00 | F182: R0.00 | G182: R0.00 | H182: R0.00 | I182: R0.00 | J182: R0.00 | K182: R0.00 | L182: R0.00 | M182: R0.00 | N182: R0.00 | O182: =SUM(C182:N182) -> R0.00
C183: Jan | D183: Feb | E183: Mar | F183: Apr | G183: May | H183: Jun | I183: Jul | J183: Aug | K183: Sep | L183: Oct
A184: Year 36 | C184: =N179+1 -> 420 | D184: =C184+1 -> 421 | E184: 422 | F184: 423 | G184: 424 | H184: 425 | I184: 426 | J184: 427 | K184: 428 | L184: 429 | M184: 430 | N184: 431
A185: Income | B185: =A184 -> Year 36 | C185: =C180*(1+$B$5) -> R0.00 | D185: =D180*(1+$B$5) -> R0.00 | E185: R0.00 | F185: R0.00 | G185: R0.00 | H185: R0.00 | I185: R0.00 | J185: R0.00 | K185: R0.00 | L185: R0.00 | M185: R0.00 | N185: R0.00
A186: Discount Rate(FACTOR) | C186: =1/(1+$B$2/12)^C184 -> 0.03063852172 | D186: 0.03038531079 | E186: 0.03013419252 | F186: 0.02988514961 | G186: 0.0296381649 | H186: 0.02939322139 | I186: 0.0291503022 | J186: 0.02890939061 | K186: 0.02867047003 | L186: 0.028433524 | M186: 0.0281985362 | N186: 0.02796549044
C187: =C185*C186 -> R0.00 | D187: =D185*D186 -> R0.00 | E187: R0.00 | F187: R0.00 | G187: R0.00 | H187: R0.00 | I187: R0.00 | J187: R0.00 | K187: R0.00 | L187: R0.00 | M187: R0.00 | N187: R0.00 | O187: =SUM(C187:N187) -> R0.00
C188: Jan | D188: Feb | E188: Mar | F188: Apr | G188: May | H188: Jun | I188: Jul | J188: Aug | K188: Sep | L188: Oct
A189: Year 37 | C189: =N184+1 -> 432 | D189: =C189+1 -> 433 | E189: 434 | F189: 435 | G189: 436 | H189: 437 | I189: 438 | J189: 439 | K189: 440 | L189: 441 | M189: 442 | N189: 443
A190: Income | B190: =A189 -> Year 37 | C190: =C185*(1+$B$5) -> R0.00 | D190: =D185*(1+$B$5) -> R0.00 | E190: R0.00 | F190: R0.00 | G190: R0.00 | H190: R0.00 | I190: R0.00 | J190: R0.00 | K190: R0.00 | L190: R0.00 | M190: R0.00 | N190: R0.00
A191: Discount Rate(FACTOR) | C191: =1/(1+$B$2/12)^C189 -> 0.02773437069 | D191: 0.02750516101 | E191: 0.02727784563 | F191: 0.02705240889 | G191: 0.02682883526 | H191: 0.02660710935 | I191: 0.02638721589 | J191: 0.02616913972 | K191: 0.02595286584 | L191: 0.02573837935 | M191: 0.02552566547 | N191: 0.02531470955
C192: =C190*C191 -> R0.00 | D192: =D190*D191 -> R0.00 | E192: R0.00 | F192: R0.00 | G192: R0.00 | H192: R0.00 | I192: R0.00 | J192: R0.00 | K192: R0.00 | L192: R0.00 | M192: R0.00 | N192: R0.00 | O192: =SUM(C192:N192) -> R0.00
C193: Jan | D193: Feb | E193: Mar | F193: Apr | G193: May | H193: Jun | I193: Jul | J193: Aug | K193: Sep | L193: Oct
A194: Year 38 | C194: =N189+1 -> 444 | D194: =C194+1 -> 445 | E194: 446 | F194: 447 | G194: 448 | H194: 449 | I194: 450 | J194: 451 | K194: 452 | L194: 453 | M194: 454 | N194: 455
A195: Income | B195: =A194 -> Year 38 | C195: =C190*(1+$B$5) -> R0.00 | D195: =D190*(1+$B$5) -> R0.00 | E195: R0.00 | F195: R0.00 | G195: R0.00 | H195: R0.00 | I195: R0.00 | J195: R0.00 | K195: R0.00 | L195: R0.00 | M195: R0.00 | N195: R0.00
A196: Discount Rate(FACTOR) | C196: =1/(1+$B$2/12)^C194 -> 0.02510549708 | D196: 0.02489801363 | E196: 0.02469224492 | F196: 0.02448817678 | G196: 0.02428579516 | H196: 0.02408508611 | I196: 0.02388603581 | J196: 0.02368863055 | K196: 0.02349285675 | L196: 0.02329870091 | M196: 0.02310614966 | N196: 0.02291518974
C197: =C195*C196 -> R0.00 | D197: =D195*D196 -> R0.00 | E197: R0.00 | F197: R0.00 | G197: R0.00 | H197: R0.00 | I197: R0.00 | J197: R0.00 | K197: R0.00 | L197: R0.00 | M197: R0.00 | N197: R0.00 | O197: =SUM(C197:N197) -> R0.00
C198: Jan | D198: Feb | E198: Mar | F198: Apr | G198: May | H198: Jun | I198: Jul | J198: Aug | K198: Sep | L198: Oct
A199: Year 39 | C199: =N194+1 -> 456 | D199: =C199+1 -> 457 | E199: 458 | F199: 459 | G199: 460 | H199: 461 | I199: 462 | J199: 463 | K199: 464 | L199: 465 | M199: 466 | N199: 467
A200: Income | B200: =A199 -> Year 39 | C200: =C195*(1+$B$5) -> R0.00 | D200: =D195*(1+$B$5) -> R0.00 | E200: R0.00 | F200: R0.00 | G200: R0.00 | H200: R0.00 | I200: R0.00 | J200: R0.00 | K200: R0.00 | L200: R0.00 | M200: R0.00 | N200: R0.00
... 58 more rows

Sheet Sheet1
